[Event "Titled Tuesday Blitz January 03 Early 2023"]
[White "Costachi, Mihnea"]
[Black "Sadykov, Ramil"]
[WhiteFideId "1217518"]
[BlackFideId "24113590"]
[WhiteElo "2476"]
[BlackElo "2345"]
[Result "0-1"]
[Round "04"]
[TimeControl "180+2"]
[Date "2023.01.03"]
[WhiteClock "0:00:14"]
[BlackClock "0:00:06"]

1. e4 {[%clk 0:03:00]}  c5 {[%clk 0:02:59]} 2. Nf3 {[%clk 0:02:58]}  Nc6 {[%clk 0:02:58]} 3. b3 {[%clk 0:02:57]}  e5 {[%clk 0:02:51]} 4. Nc3 {[%clk 0:02:55]}  d6 {[%clk 0:02:51]} 5. Bb2 {[%clk 0:02:55]}  g6 {[%clk 0:02:50]} 6. Nd5 {[%clk 0:02:55]}  Bg7 {[%clk 0:02:49]} 7. c3 {[%clk 0:02:55]}  Nge7 {[%clk 0:02:50]} 8. Nxe7 {[%clk 0:02:55]}  Qxe7 {[%clk 0:02:49]} 9. Bd3 {[%clk 0:02:55]}  O-O {[%clk 0:02:41]} 10. O-O {[%clk 0:02:55]}  f5 {[%clk 0:02:41]} 11. exf5 {[%clk 0:02:55]}  gxf5 {[%clk 0:02:32]} 12. Bc4+ {[%clk 0:02:51]}  Kh8 {[%clk 0:02:28]} 13. d4 {[%clk 0:02:51]}  e4 {[%clk 0:02:26]} 14. Re1 {[%clk 0:02:51]}  Qf6 {[%clk 0:02:21]} 15. Nd2 {[%clk 0:02:44]}  cxd4 {[%clk 0:02:13]} 16. cxd4 {[%clk 0:02:45]}  Nxd4 {[%clk 0:02:12]} 17. Rb1 {[%clk 0:02:44]}  d5 {[%clk 0:01:28]} 18. Bf1 {[%clk 0:02:00]}  Qb6 {[%clk 0:01:20]} 19. Qh5 {[%clk 0:02:00]}  Be6 {[%clk 0:01:14]} 20. Rbd1 {[%clk 0:01:57]}  Bf7 {[%clk 0:00:58]} 21. Qh3 {[%clk 0:01:54]}  Rad8 {[%clk 0:00:55]} 22. Nb1 {[%clk 0:01:49]}  Nf3+ {[%clk 0:00:52]} 23. gxf3 {[%clk 0:01:47]}  Bxb2 {[%clk 0:00:53]} 24. fxe4 {[%clk 0:01:38]}  fxe4 {[%clk 0:00:50]} 25. Bg2 {[%clk 0:01:35]}  Be6 {[%clk 0:00:38]} 26. Qh4 {[%clk 0:01:29]}  Rd7 {[%clk 0:00:28]} 27. Rf1 {[%clk 0:01:26]}  Rdf7 {[%clk 0:00:19]} 28. Rd2 {[%clk 0:01:17]}  Bf6 {[%clk 0:00:12]} 29. Qh6 {[%clk 0:01:12]}  Rg8 {[%clk 0:00:10]} 30. Kh1 {[%clk 0:01:11]}  Bg5 {[%clk 0:00:10]} 31. Qh5 {[%clk 0:00:53]}  Bxd2 {[%clk 0:00:10]} 32. Qe5+ {[%clk 0:00:47]}  Rfg7 {[%clk 0:00:11]} 33. Nxd2 {[%clk 0:00:48]}  Qc7 {[%clk 0:00:09]} 34. Qxe6 {[%clk 0:00:47]}  Rxg2 {[%clk 0:00:07]} 35. Qf6+ {[%clk 0:00:38]}  Qg7 {[%clk 0:00:05]} 36. Qxg7+ {[%clk 0:00:35]}  R2xg7 {[%clk 0:00:06]} 37. Nb1 {[%clk 0:00:31]}  Rf8 {[%clk 0:00:07]} 38. Nc3 {[%clk 0:00:31]}  Rf5 {[%clk 0:00:07]} 39. Ne2 {[%clk 0:00:29]}  e3 {[%clk 0:00:06]} 40. f3 {[%clk 0:00:25]}  Rgf7 {[%clk 0:00:07]} 41. Kg2 {[%clk 0:00:25]}  Rg5+ {[%clk 0:00:08]} 42. Kh1 {[%clk 0:00:22]}  Rc7 {[%clk 0:00:07]} 43. f4 {[%clk 0:00:20]}  Rg6 {[%clk 0:00:07]} 44. f5 {[%clk 0:00:19]}  Rf6 {[%clk 0:00:08]} 45. Kg2 {[%clk 0:00:20]}  Rc2 {[%clk 0:00:08]} 46. Re1 {[%clk 0:00:15]}  Rxf5 {[%clk 0:00:06]} 47. Kg3 {[%clk 0:00:15]}  Rf2 {[%clk 0:00:05]} 48. Nd4 {[%clk 0:00:14]}  Rcd2 {[%clk 0:00:06]} 49. Rxe3 {[%clk 0:00:14]}  Rg2+ {[%clk 0:00:06]} 50. Kh3 {[%clk 0:00:13]}  Rxh2+ {[%clk 0:00:07]} 51. Kg3 {[%clk 0:00:13]}  Rhg2+ {[%clk 0:00:06]} 52. Kh3 {[%clk 0:00:14]}  Rh2+ {[%clk 0:00:05]} 53. Kg3 {[%clk 0:00:14]}  Rdg2+ {[%clk 0:00:02]} 54. Kf3 {[%clk 0:00:11]}  Rh3+ {[%clk 0:00:02]} 55. Kxg2 {[%clk 0:00:07]}  Rxe3 {[%clk 0:00:03]} 56. Kf2 {[%clk 0:00:07]}  Re4 {[%clk 0:00:03]} 57. Nf5 {[%clk 0:00:08]}  Rf4+ {[%clk 0:00:04]} 58. Ke3 {[%clk 0:00:08]}  Rxf5 {[%clk 0:00:05]} 59. Kd4 {[%clk 0:00:09]}  h5 {[%clk 0:00:05]} 60. a4 {[%clk 0:00:09]}  h4 {[%clk 0:00:05]} 61. a5 {[%clk 0:00:10]}  h3 {[%clk 0:00:05]} 62. a6 {[%clk 0:00:11]}  bxa6 {[%clk 0:00:05]} 63. Kc5 {[%clk 0:00:11]}  d4+ {[%clk 0:00:05]} 64. Kb4 {[%clk 0:00:12]}  Rb5+ {[%clk 0:00:05]} 65. Ka4 {[%clk 0:00:13]}  h2 {[%clk 0:00:05]} 66. b4 {[%clk 0:00:14]}  h1=Q {[%clk 0:00:05]} 67. Ka3 {[%clk 0:00:14]}  Qa1+ {[%clk 0:00:05]} 68. Kb3 {[%clk 0:00:14]}  Qc3+ {[%clk 0:00:06]} 69. Ka4 {[%clk 0:00:14]}  Qxb4# {[%clk 0:00:06]} 0-1


[Site "https://www.chess.com"]

[Event "Titled Tuesday Blitz January 03 Early 2023"]
[White "Hirneise, Jens"]
[Black "Boruchovsky, Avital"]
[WhiteFideId "24614734"]
[BlackFideId "2800055"]
[WhiteElo "2277"]
[BlackElo "2539"]
[Result "0-1"]
[Round "04"]
[TimeControl "180+2"]
[Date "2023.01.03"]
[WhiteClock "0:00:31"]
[BlackClock "0:00:18"]

1. c4 {[%clk 0:03:00]}  b6 {[%clk 0:02:58]} 2. e4 {[%clk 0:02:59]}  Bb7 {[%clk 0:02:58]} 3. Nc3 {[%clk 0:03:00]}  e6 {[%clk 0:02:51]} 4. d3 {[%clk 0:03:00]}  f5 {[%clk 0:02:47]} 5. Nge2 {[%clk 0:02:52]}  Nf6 {[%clk 0:02:46]} 6. exf5 {[%clk 0:02:32]}  exf5 {[%clk 0:02:47]} 7. Nf4 {[%clk 0:02:33]}  Be7 {[%clk 0:02:38]} 8. Be2 {[%clk 0:02:29]}  O-O {[%clk 0:02:36]} 9. Bf3 {[%clk 0:02:27]}  Bxf3 {[%clk 0:02:26]} 10. Qxf3 {[%clk 0:02:27]}  Nc6 {[%clk 0:02:16]} 11. O-O {[%clk 0:02:26]}  Nd4 {[%clk 0:02:15]} 12. Qd1 {[%clk 0:02:15]}  c6 {[%clk 0:02:14]} 13. Be3 {[%clk 0:02:13]}  Ne6 {[%clk 0:02:11]} 14. Re1 {[%clk 0:02:06]}  Ng4 {[%clk 0:02:05]} 15. Qf3 {[%clk 0:02:00]}  Bd6 {[%clk 0:01:52]} 16. g3 {[%clk 0:01:49]}  Ng5 {[%clk 0:01:47]} 17. Qg2 {[%clk 0:01:41]}  Ne5 {[%clk 0:01:46]} 18. Kh1 {[%clk 0:01:37]}  Qf6 {[%clk 0:01:31]} 19. Bd4 {[%clk 0:01:32]}  Ngf3 {[%clk 0:01:18]} 20. Bxe5 {[%clk 0:01:24]}  Nxe1 {[%clk 0:01:16]} 21. Bxf6 {[%clk 0:01:08]}  Nxg2 {[%clk 0:01:14]} 22. Nxg2 {[%clk 0:01:09]}  Rxf6 {[%clk 0:01:14]} 23. Kg1 {[%clk 0:01:08]}  Re8 {[%clk 0:01:13]} 24. Kf1 {[%clk 0:01:08]}  Bc5 {[%clk 0:01:10]} 25. a3 {[%clk 0:01:07]}  Bd4 {[%clk 0:01:09]} 26. Rc1 {[%clk 0:01:07]}  g5 {[%clk 0:01:00]} 27. b4 {[%clk 0:01:03]}  Rfe6 {[%clk 0:00:59]} 28. h4 {[%clk 0:01:01]}  h6 {[%clk 0:00:59]} 29. Nd1 {[%clk 0:00:52]}  Kg7 {[%clk 0:00:55]} 30. Nde3 {[%clk 0:00:48]}  Bxe3 {[%clk 0:00:50]} 31. Nxe3 {[%clk 0:00:48]}  Kg6 {[%clk 0:00:48]} 32. h5+ {[%clk 0:00:48]}  Kf6 {[%clk 0:00:42]} 33. d4 {[%clk 0:00:47]}  f4 {[%clk 0:00:36]} 34. gxf4 {[%clk 0:00:45]}  gxf4 {[%clk 0:00:37]} 35. Ng4+ {[%clk 0:00:42]}  Kg5 {[%clk 0:00:34]} 36. f3 {[%clk 0:00:42]}  Re2 {[%clk 0:00:28]} 37. d5 {[%clk 0:00:39]}  Ra2 {[%clk 0:00:25]} 38. dxc6 {[%clk 0:00:39]}  dxc6 {[%clk 0:00:25]} 39. Rd1 {[%clk 0:00:40]}  Ree2 {[%clk 0:00:19]} 40. Rd6 {[%clk 0:00:35]}  Red2 {[%clk 0:00:18]} 41. Rxd2 {[%clk 0:00:29]}  Rxd2 {[%clk 0:00:19]} 42. Nf2 {[%clk 0:00:30]}  Kxh5 {[%clk 0:00:18]} 43. Ne4 {[%clk 0:00:31]}  Ra2 {[%clk 0:00:18]} 0-1


[Site "https://www.chess.com"]

[Event "Titled Tuesday Blitz January 03 Early 2023"]
[White "Harsh Suresh"]
[Black "Aggelis, Nikolaos"]
[WhiteFideId "45018464"]
[BlackFideId "4213220"]
[WhiteElo "2298"]
[BlackElo "2270"]
[Result "1-0"]
[Round "04"]
[TimeControl "180+2"]
[Date "2023.01.03"]
[WhiteClock "0:01:02"]
[BlackClock "0:01:36"]

1. e4 {[%clk 0:03:00]}  c6 {[%clk 0:02:58]} 2. Nf3 {[%clk 0:02:59]}  d5 {[%clk 0:02:59]} 3. d3 {[%clk 0:03:00]}  dxe4 {[%clk 0:02:59]} 4. dxe4 {[%clk 0:03:00]}  Qxd1+ {[%clk 0:02:59]} 5. Kxd1 {[%clk 0:03:01]}  f6 {[%clk 0:03:00]} 6. a4 {[%clk 0:02:58]}  e5 {[%clk 0:02:59]} 7. Bc4 {[%clk 0:02:51]}  Bc5 {[%clk 0:02:58]} 8. Ke2 {[%clk 0:02:52]}  Ke7 {[%clk 0:02:50]} 9. Ne1 {[%clk 0:02:51]}  Be6 {[%clk 0:02:49]} 10. Bxe6 {[%clk 0:02:49]}  Kxe6 {[%clk 0:02:50]} 11. Nd3 {[%clk 0:02:49]}  Bd6 {[%clk 0:02:48]} 12. Be3 {[%clk 0:02:46]}  Ne7 {[%clk 0:02:47]} 13. Nd2 {[%clk 0:02:44]}  Nd7 {[%clk 0:02:43]} 14. Nc4 {[%clk 0:02:39]}  b6 {[%clk 0:02:28]} 15. Rhd1 {[%clk 0:02:35]}  Bc7 {[%clk 0:02:25]} 16. Nb4 {[%clk 0:02:31]}  Rhd8 {[%clk 0:02:23]} 17. Na6 {[%clk 0:02:30]}  Rac8 {[%clk 0:02:19]} 18. Nxc7+ {[%clk 0:02:29]}  Rxc7 {[%clk 0:02:19]} 19. Rd6+ {[%clk 0:02:29]}  Kf7 {[%clk 0:02:19]} 20. Rad1 {[%clk 0:02:30]}  Ke8 {[%clk 0:02:18]} 21. g4 {[%clk 0:02:09]}  Nc8 {[%clk 0:02:18]} 22. R6d2 {[%clk 0:02:07]}  Ke7 {[%clk 0:02:08]} 23. h4 {[%clk 0:02:06]}  Rf8 {[%clk 0:02:05]} 24. a5 {[%clk 0:02:02]}  Rb7 {[%clk 0:01:53]} 25. b4 {[%clk 0:01:56]}  Ke6 {[%clk 0:01:51]} 26. c3 {[%clk 0:01:46]}  Rf7 {[%clk 0:01:50]} 27. Nd6 {[%clk 0:01:35]}  Nxd6 {[%clk 0:01:46]} 28. Rxd6+ {[%clk 0:01:36]}  Ke7 {[%clk 0:01:46]} 29. Rxc6 {[%clk 0:01:37]}  Nb8 {[%clk 0:01:43]} 30. Rc8 {[%clk 0:01:31]}  bxa5 {[%clk 0:01:43]} 31. Bc5+ {[%clk 0:01:26]}  Ke6 {[%clk 0:01:39]} 32. Rd6+ {[%clk 0:01:05]}  Ke7 {[%clk 0:01:38]} 33. Rdd8+ {[%clk 0:01:05]}  Ke6 {[%clk 0:01:36]} 34. Rxb8 {[%clk 0:01:03]}  Rxb8 {[%clk 0:01:37]} 35. Rxb8 {[%clk 0:01:03]}  axb4 {[%clk 0:01:38]} 36. cxb4 {[%clk 0:01:02]}  Rc7 {[%clk 0:01:36]} 37. Ra8 {[%clk 0:01:02]} 1-0


[Site "https://www.chess.com"]

[Event "Titled Tuesday Blitz January 03 Early 2023"]
[White "Koutlas, Nikolaos"]
[Black "Beerdsen, Thomas"]
[WhiteFideId "25827138"]
[BlackFideId "1030108"]
[WhiteElo "2341"]
[BlackElo "2507"]
[Result "1-0"]
[Round "04"]
[TimeControl "180+2"]
[Date "2023.01.03"]
[WhiteClock "0:00:11"]
[BlackClock "0:00:05"]

1. a3 {[%clk 0:03:00]}  a5 {[%clk 0:02:55]} 2. e4 {[%clk 0:02:58]}  g6 {[%clk 0:02:53]} 3. Nf3 {[%clk 0:02:57]}  Bg7 {[%clk 0:02:53]} 4. d4 {[%clk 0:02:56]}  d5 {[%clk 0:02:53]} 5. exd5 {[%clk 0:02:54]}  Nf6 {[%clk 0:02:51]} 6. c4 {[%clk 0:02:53]}  O-O {[%clk 0:02:51]} 7. Be2 {[%clk 0:02:51]}  e6 {[%clk 0:02:49]} 8. dxe6 {[%clk 0:02:47]}  Bxe6 {[%clk 0:02:50]} 9. O-O {[%clk 0:02:47]}  Re8 {[%clk 0:02:42]} 10. h3 {[%clk 0:02:36]}  c6 {[%clk 0:02:30]} 11. Nc3 {[%clk 0:02:34]}  Nbd7 {[%clk 0:02:29]} 12. Bg5 {[%clk 0:02:13]}  h6 {[%clk 0:02:26]} 13. Bh4 {[%clk 0:02:12]}  Nb6 {[%clk 0:02:23]} 14. b3 {[%clk 0:01:59]}  a4 {[%clk 0:02:22]} 15. Nxa4 {[%clk 0:01:59]}  Nxa4 {[%clk 0:02:21]} 16. bxa4 {[%clk 0:01:59]}  Qa5 {[%clk 0:02:21]} 17. Rb1 {[%clk 0:01:50]}  Ne4 {[%clk 0:02:20]} 18. Rxb7 {[%clk 0:01:34]}  Nc3 {[%clk 0:02:18]} 19. Qd2 {[%clk 0:01:30]}  Nxe2+ {[%clk 0:02:09]} 20. Qxe2 {[%clk 0:01:25]}  Qxa4 {[%clk 0:02:09]} 21. Ne5 {[%clk 0:01:18]}  Qxa3 {[%clk 0:02:03]} 22. Nxc6 {[%clk 0:01:07]}  Kh7 {[%clk 0:01:57]} 23. Ne5 {[%clk 0:01:05]}  Qc3 {[%clk 0:01:53]} 24. Bg3 {[%clk 0:00:39]}  Qxd4 {[%clk 0:01:45]} 25. Rd1 {[%clk 0:00:26]}  Ra1 {[%clk 0:01:39]} 26. Rxa1 {[%clk 0:00:26]}  Qxa1+ {[%clk 0:01:40]} 27. Kh2 {[%clk 0:00:26]}  Qa8 {[%clk 0:01:20]} 28. Qf3 {[%clk 0:00:20]}  Rf8 {[%clk 0:00:39]} 29. c5 {[%clk 0:00:10]}  Qd8 {[%clk 0:00:30]} 30. c6 {[%clk 0:00:10]}  Bd5 {[%clk 0:00:31]} 31. Qc3 {[%clk 0:00:04]}  Qc8 {[%clk 0:00:31]} 32. Rd7 {[%clk 0:00:02]}  Be6 {[%clk 0:00:24]} 33. Rd6 {[%clk 0:00:03]}  Re8 {[%clk 0:00:24]} 34. c7 {[%clk 0:00:02]}  Re7 {[%clk 0:00:25]} 35. Rc6 {[%clk 0:00:02]}  Bd5 {[%clk 0:00:24]} 36. Rc5 {[%clk 0:00:02]}  Ba8 {[%clk 0:00:24]} 37. Qc1 {[%clk 0:00:02]}  Qb7 {[%clk 0:00:23]} 38. Nf3 {[%clk 0:00:02]}  Qc8 {[%clk 0:00:23]} 39. Rb5 {[%clk 0:00:02]}  Bxf3 {[%clk 0:00:22]} 40. gxf3 {[%clk 0:00:01]}  Rxc7 {[%clk 0:00:04]} 41. Rc5 {[%clk 0:00:01]}  Qe6 {[%clk 0:00:05]} 42. Rxc7 {[%clk 0:00:01]}  h5 {[%clk 0:00:05]} 43. Rc6 {[%clk 0:00:02]}  Qf5 {[%clk 0:00:05]} 44. Rc3 {[%clk 0:00:03]}  Bxc3 {[%clk 0:00:05]} 45. Qxc3 {[%clk 0:00:03]}  Qg5 {[%clk 0:00:05]} 46. Qe5 {[%clk 0:00:02]}  Qd8 {[%clk 0:00:05]} 47. Qf4 {[%clk 0:00:03]}  Kg8 {[%clk 0:00:05]} 48. Qh4 {[%clk 0:00:03]}  Qa8 {[%clk 0:00:05]} 49. Qf4 {[%clk 0:00:04]}  Qc8 {[%clk 0:00:04]} 50. Qe4 {[%clk 0:00:05]}  Qd8 {[%clk 0:00:05]} 51. h4 {[%clk 0:00:06]}  Qc8 {[%clk 0:00:05]} 52. Qe5 {[%clk 0:00:06]}  Qd7 {[%clk 0:00:05]} 53. Qg5 {[%clk 0:00:07]}  Kh7 {[%clk 0:00:05]} 54. f4 {[%clk 0:00:07]}  Qe6 {[%clk 0:00:05]} 55. f5 {[%clk 0:00:08]}  gxf5 {[%clk 0:00:05]} 56. Qxh5+ {[%clk 0:00:07]}  Kg8 {[%clk 0:00:05]} 57. Qg5+ {[%clk 0:00:08]}  Kf8 {[%clk 0:00:06]} 58. h5 {[%clk 0:00:08]}  Qe4 {[%clk 0:00:04]} 59. Qf4 {[%clk 0:00:08]}  Qe2 {[%clk 0:00:04]} 60. h6 {[%clk 0:00:08]}  Qh5+ {[%clk 0:00:05]} 61. Qh4 {[%clk 0:00:08]}  Qxh4+ {[%clk 0:00:02]} 62. Bxh4 {[%clk 0:00:09]}  Kg8 {[%clk 0:00:03]} 63. Bg5 {[%clk 0:00:08]}  Kh7 {[%clk 0:00:04]} 64. Kg3 {[%clk 0:00:09]}  f6 {[%clk 0:00:04]} 65. Bd2 {[%clk 0:00:09]}  Kg6 {[%clk 0:00:04]} 66. f3 {[%clk 0:00:09]}  Kh7 {[%clk 0:00:04]} 67. Kh4 {[%clk 0:00:10]}  Kg6 {[%clk 0:00:04]} 68. Bf4 {[%clk 0:00:10]}  Kh7 {[%clk 0:00:05]} 69. Kh5 {[%clk 0:00:11]} 1-0


[Site "https://www.chess.com"]

[Event "Titled Tuesday Blitz January 03 Early 2023"]
[White "Mekhitarian, Krikor Sevag"]
[Black "Bodnaruk, Anastasia"]
[WhiteFideId "2107660"]
[BlackFideId "4181751"]
[WhiteElo "2537"]
[BlackElo "2350"]
[Result "0-1"]
[Round "04"]
[TimeControl "180+2"]
[Date "2023.01.03"]
[WhiteClock "0:00:03"]
[BlackClock "0:00:06"]

1. e4 {[%clk 0:03:00]}  c5 {[%clk 0:02:58]} 2. Nf3 {[%clk 0:02:55]}  d6 {[%clk 0:02:58]} 3. c3 {[%clk 0:02:53]}  Nf6 {[%clk 0:02:57]} 4. h3 {[%clk 0:02:53]}  Nbd7 {[%clk 0:02:54]} 5. Bd3 {[%clk 0:02:52]}  b6 {[%clk 0:02:51]} 6. O-O {[%clk 0:02:51]}  Bb7 {[%clk 0:02:51]} 7. Re1 {[%clk 0:02:51]}  e5 {[%clk 0:02:48]} 8. Bc2 {[%clk 0:02:50]}  Be7 {[%clk 0:02:48]} 9. d4 {[%clk 0:02:50]}  O-O {[%clk 0:02:42]} 10. d5 {[%clk 0:02:47]}  c4 {[%clk 0:02:27]} 11. b3 {[%clk 0:02:46]}  Rc8 {[%clk 0:02:21]} 12. Nbd2 {[%clk 0:02:31]}  b5 {[%clk 0:02:18]} 13. bxc4 {[%clk 0:02:24]}  bxc4 {[%clk 0:02:18]} 14. Rb1 {[%clk 0:02:22]}  Ba6 {[%clk 0:02:18]} 15. Ba3 {[%clk 0:02:17]}  Nc5 {[%clk 0:02:13]} 16. Bxc5 {[%clk 0:01:55]}  Rxc5 {[%clk 0:02:12]} 17. Ba4 {[%clk 0:01:53]}  Nd7 {[%clk 0:01:51]} 18. Nh2 {[%clk 0:01:39]}  Nb6 {[%clk 0:01:44]} 19. Bc6 {[%clk 0:01:38]}  Bc8 {[%clk 0:01:36]} 20. Nhf1 {[%clk 0:01:27]}  Bd7 {[%clk 0:01:35]} 21. Bxd7 {[%clk 0:01:27]}  Qxd7 {[%clk 0:01:36]} 22. Ne3 {[%clk 0:01:25]}  g6 {[%clk 0:01:35]} 23. Rb4 {[%clk 0:01:20]}  Rfc8 {[%clk 0:01:35]} 24. Qe2 {[%clk 0:01:17]}  Bg5 {[%clk 0:01:33]} 25. Reb1 {[%clk 0:01:15]}  Na4 {[%clk 0:01:26]} 26. Rc1 {[%clk 0:01:07]}  a5 {[%clk 0:01:22]} 27. Rbb1 {[%clk 0:01:07]}  h5 {[%clk 0:01:02]} 28. Ndf1 {[%clk 0:01:03]}  Bh6 {[%clk 0:00:53]} 29. Qc2 {[%clk 0:00:56]}  R5c7 {[%clk 0:00:44]} 30. Rd1 {[%clk 0:00:55]}  Nc5 {[%clk 0:00:34]} 31. Nxc4 {[%clk 0:00:52]}  Na4 {[%clk 0:00:34]} 32. Nxa5 {[%clk 0:00:20]}  Nxc3 {[%clk 0:00:33]} 33. Nc6 {[%clk 0:00:20]}  Nxd1 {[%clk 0:00:30]} 34. Qxd1 {[%clk 0:00:20]}  Rb7 {[%clk 0:00:30]} 35. Rb3 {[%clk 0:00:14]}  Ra8 {[%clk 0:00:26]} 36. Qb1 {[%clk 0:00:13]}  Rxb3 {[%clk 0:00:26]} 37. Qxb3 {[%clk 0:00:12]}  Kh7 {[%clk 0:00:24]} 38. h4 {[%clk 0:00:12]}  Qc8 {[%clk 0:00:24]} 39. g3 {[%clk 0:00:11]}  Qa6 {[%clk 0:00:24]} 40. Kg2 {[%clk 0:00:11]}  Qa4 {[%clk 0:00:23]} 41. Qf3 {[%clk 0:00:08]}  Kg7 {[%clk 0:00:23]} 42. Ne3 {[%clk 0:00:03]}  Qxa2 {[%clk 0:00:22]} 43. Nb4 {[%clk 0:00:02]}  Qb1 {[%clk 0:00:21]} 44. Nc6 {[%clk 0:00:02]}  Ra4 {[%clk 0:00:20]} 45. Ne7 {[%clk 0:00:01]}  Qxe4 {[%clk 0:00:19]} 46. Qxe4 {[%clk 0:00:01]}  Rxe4 {[%clk 0:00:19]} 47. Kf3 {[%clk 0:00:02]}  Ra4 {[%clk 0:00:19]} 48. Nc8 {[%clk 0:00:02]}  Ra6 {[%clk 0:00:18]} 49. Nc4 {[%clk 0:00:02]}  f5 {[%clk 0:00:14]} 50. N8xd6 {[%clk 0:00:02]}  e4+ {[%clk 0:00:15]} 51. Ke2 {[%clk 0:00:03]}  Ra2+ {[%clk 0:00:14]} 52. Kf1 {[%clk 0:00:02]}  Kf6 {[%clk 0:00:14]} 53. Nb5 {[%clk 0:00:02]}  Bf8 {[%clk 0:00:14]} 54. d6 {[%clk 0:00:02]}  Ke6 {[%clk 0:00:14]} 55. Nc7+ {[%clk 0:00:03]}  Kd7 {[%clk 0:00:14]} 56. Nd5 {[%clk 0:00:03]}  Bxd6 {[%clk 0:00:13]} 57. Nxd6 {[%clk 0:00:04]}  Kxd6 {[%clk 0:00:14]} 58. Nf4 {[%clk 0:00:05]}  Ke5 {[%clk 0:00:09]} 59. Nxg6+ {[%clk 0:00:05]}  Kd4 {[%clk 0:00:09]} 60. Nf4 {[%clk 0:00:06]}  e3 {[%clk 0:00:09]} 61. fxe3+ {[%clk 0:00:02]}  Kxe3 {[%clk 0:00:10]} 62. Nxh5 {[%clk 0:00:02]}  Kf3 {[%clk 0:00:11]} 63. Kg1 {[%clk 0:00:03]}  Kg4 {[%clk 0:00:06]} 64. Ng7 {[%clk 0:00:03]}  Ra7 {[%clk 0:00:06]} 65. Ne6 {[%clk 0:00:03]}  Kxg3 {[%clk 0:00:06]} 66. Kf1 {[%clk 0:00:03]}  f4 {[%clk 0:00:06]} 67. h5 {[%clk 0:00:03]}  Ra1+ {[%clk 0:00:05]} 68. Ke2 {[%clk 0:00:03]}  f3+ {[%clk 0:00:06]} 0-1


[Site "https://www.chess.com"]